bitfinex-derivatives/quotes_ETHF0:USTF0_20240830
["timestamp","ask_amount","ask_price","bid_price","bid_amount"]
[1725003603370,2.31606,2526.4,2526.3,4.94892939]
[1725003603667,2.31606,2526.4,2526.3,3.39189313]
[1725003604065,1.9203,2526.4,2526.3,3.39189313]
[1725003604368,3.74606,2526.4,2526.3,4.94892939]
[1725003604961,3.3503,2526.4,2526.3,4.94892939]
[1725003605457,4.201,2526.6,2526.3,4.94892939]
[1725003605666,4.201,2526.6,2526.4,3.53675145]
[1725003605864,3.2078,2526.6,2526.5,3.53651798]
[1725003606060,1.9364,2526.9,2526.6,0.39572]
[1725003606264,1.43,2526.9,2526.7,3.93180527]
[1725003606567,1.43,2526.9,2526.8,3.53609527]
[1725003606761,1.43,2526.9,2526.8,1.97936196]
[1725003607270,1.43,2526.9,2526.8,3.53536435]
[1725003607968,1.43,2526.9,2526.8,3.5344939]
[1725003608166,1.43,2526.9,2526.8,1.97936196]
[1725003608470,1.43,2526.9,2526.8,3.53385065]
[1725003609259,3.3306,2526.9,2526.8,1.03633593]
[1725003609464,3.3306,2526.9,2526.8,3.53371264]
[1725003609771,3.3306,2526.9,2526.8,1.03615938]
[1725003610068,3.3306,2526.9,2526.8,3.42930102]
[1725003610260,3.3306,2526.9,2526.8,1.4501272]
[1725003611762,3.3306,2526.9,2526.8,0.41396782]
[1725003612159,3.3306,2526.9,2526.5,2.47101461]
[1725003612160,17.41466815,2526.9,2526.5,1.03615938]
[1725003612363,0.39576,2526.4,2526.3,1.03615938]
[1725003612570,1.82576,2526.4,2526.3,0.41405287]
[1725003612870,0.39577,2526.3,2526.2,1.03615938]
[1725003613065,6.26340232,2526.4,2526.2,3.42975279]
[1725003613271,6.26340232,2526.4,2526.2,1.0360061]
[1725003613471,0.39577,2526.3,2526.2,1.0360061]
[1725003613667,0.39577,2526.3,2526.2,1.45007799]
[1725003613974,0.39577,2526.3,2526.2,1.0360061]
[1725003614166,4.83831274,2526.3,2526.1,1.9689061]
[1725003614361,1.43,2526.2,2526.1,1.9689061]
[1725003614562,1.43,2526.2,2526.1,4.36271951]
[1725003614876,5.96266613,2526.2,2526.1,4.36271951]
[1725003615173,5.96266613,2526.2,2526.1,4.8812021]
[1725003615675,5.96266613,2526.2,2526.1,3.32671341]
[1725003615859,5.96266613,2526.2,2526.1,4.8812021]
[1725003616059,5.96266613,2526.2,2526.1,3.32668011]
[1725003616564,5.96266613,2526.2,2526.1,4.36287543]
[1725003617163,10.31685613,2526.2,2526.1,0.41407363]
[1725003617767,0.39582,2526.0,2525.9,1.04213462]
[1725003617967,1.82582,2526.0,2525.9,1.04213462]
[1725003618172,6.07398266,2526.0,2525.9,1.04213462]
[1725003620469,0.39579,2526.2,2525.9,7.9136702]
[1725003620675,0.39579,2526.2,2526.1,1.03604173]
[1725003620872,4.6833181,2526.2,2526.0,1.03604173]
[1725003621077,6.1133181,2526.2,2526.1,0.9296]
[1725003621278,7.0699181,2526.2,2526.1,0.9296]
[1725003622877,4.2875281,2526.2,2526.1,0.9296]
[1725003623179,1.82577,2526.3,2526.1,0.9296]
[1725003623481,7.07159109,2526.3,2526.1,1.96564173]
[1725003623678,0.39579,2526.2,2526.1,1.96564173]
[1725003623883,1.37919,2526.2,2526.1,0.9296]
[1725003624089,5.61401109,2526.2,2526.1,0.9296]
[1725003624877,0.39582,2526.0,2525.9,1.04198103]
[1725003625081,1.82582,2526.0,2525.9,2.39329421]
[1725003625682,1.82582,2526.0,2525.9,1.97918103]
[1725003626175,1.82581,2526.1,2525.9,2.39329467]
[1725003626372,0.39582,2526.0,2525.9,1.97918103]
[1725003626576,0.39582,2526.0,2525.9,2.39328969]
[1725003626794,5.98609033,2526.1,2525.9,2.39328969]
[1725003626978,5.98609033,2526.1,2525.9,1.97918103]
[1725003627986,5.59028033,2526.1,2526.0,1.03604173]
[1725003628186,5.59028033,2526.1,2526.0,1.45013947]
[1725003629377,1.43,2526.3,2526.0,5.80435947]
[1725003629589,1.43,2526.3,2526.1,1.45011148]
[1725003629890,1.43,2526.3,2526.1,1.03604173]
[1725003630087,1.43,2526.3,2526.2,0.945]
[1725003631692,1.43,2526.3,2526.2,2.863]
[1725003635502,1.82577,2526.3,2526.2,2.863]
[1725003635804,1.43,2526.3,2526.2,1.9197]
[1725003636192,1.82577,2526.3,2526.2,0.945]
[1725003636398,1.43,2526.3,2526.2,0.945]
[1725003637498,1.43,2526.3,2526.2,1.98104173]
[1725003637805,1.43,2526.3,2526.2,2.39509361]
[1725003638502,1.43,2526.3,2526.2,1.98104173]
[1725003638702,1.43,2526.3,2526.2,2.39509918]
[1725003639101,1.43,2526.3,2526.2,1.98104173]
[1725003639304,1.43,2526.3,2526.2,4.37471998]
[1725003639703,1.43,2526.3,2526.2,2.39509924]
[1725003639998,1.43,2526.3,2526.2,4.37474892]
[1725003640812,1.43,2526.3,2526.2,4.37469684]
[1725003641513,1.43,2526.3,2526.2,2.39509924]
[1725003642900,1.43,2526.3,2526.2,1.98104173]
[1725003646505,1.82577,2526.3,2526.2,1.98104173]
[1725003646716,1.82577,2526.3,2526.2,0.945]
[1725003648218,1.43,2526.3,2526.2,1.98113085]
[1725003648419,1.43,2526.3,2526.2,2.39519433]
[1725003648809,1.82577,2526.3,2526.2,2.39519433]
[1725003649418,1.43,2526.3,2526.2,2.39519433]
[1725003651217,6.16130724,2526.3,2526.2,1.03613085]
[1725003651427,0.39579,2526.2,2526.1,1.03613085]
[1725003651715,0.3958,2526.1,2526.0,1.03613085]
[1725003651917,2.7668,2526.1,2526.0,1.45022464]
[1725003652123,0.39582,2526.0,2525.9,1.97097015]
[1725003652315,2.35912,2526.0,2525.9,3.43611623]
[1725003652719,2.35912,2526.0,2525.9,2.39998538]
[1725003652923,2.76681,2526.1,2525.9,3.95418166]
[1725003653127,2.76681,2526.1,2525.9,1.04224086]
[1725003653328,0.3958,2526.2,2526.0,1.03630156]
[1725003653529,0.3958,2526.2,2526.1,0.9774]
[1725003653826,4.83638155,2526.2,2526.1,0.9774]
[1725003654624,4.83638155,2526.2,2526.1,3.99346707]
[1725003654925,4.44058155,2526.2,2526.1,2.94670156]
[1725003655125,4.83637155,2526.2,2526.1,2.94670156]
[1725003655323,4.83637155,2526.2,2526.1,4.92650292]
[1725003655515,5.41378155,2526.2,2526.1,3.89024077]
[1725003655712,5.41378155,2526.2,2526.1,4.92730586]
[1725003655917,5.41378155,2526.2,2526.1,3.99430586]
[1725003655918,6.84378155,2526.2,2526.1,3.99430586]
[1725003656419,6.84378155,2526.2,2526.1,4.51143705]
[1725003656619,6.84378155,2526.2,2526.1,3.99473793]
[1725003656820,6.84378155,2526.2,2526.1,3.99477221]
[1725003657324,6.84378155,2526.2,2526.1,4.92557217]
[1725003658722,7.23957155,2526.2,2526.1,4.92557217]
[1725003659117,7.23957155,2526.2,2526.1,3.37137589]
[1725003659619,6.84378155,2526.2,2526.1,3.37137589]
[1725003660324,4.37101233,2526.6,2526.1,3.37137589]
[1725003660325,0.39576,2526.4,2526.1,9.79890218]
[1725003660531,1.82576,2526.4,2526.3,1.55705106]
[1725003660824,5.97882076,2526.4,2526.3,3.53692611]
[1725003661017,5.97882076,2526.4,2526.3,3.95081079]
[1725003661220,5.58306076,2526.4,2526.3,3.95081079]
[1725003661728,5.58306076,2526.4,2526.3,3.01774561]
[1725003662632,5.58306076,2526.4,2526.3,3.9508068]
[1725003663331,0.39569,2526.9,2526.4,0.39575]
[1725003663521,3.2078,2527.0,2526.8,1.0379149]
[1725003663722,1.4359393,2527.2,2526.9,10.04380708]
[1725003663922,1.4359393,2527.2,2527.1,1.55654895]
[1725003664122,1.4359393,2527.2,2527.1,1.45081223]
[1725003664323,5.96807434,2527.2,2527.1,3.01590034]
[1725003664518,5.96807434,2527.2,2527.1,1.97903755]
[1725003664724,1.4359393,2527.2,2527.1,3.5355865]
[1725003665227,1.4359393,2527.2,2527.1,1.03624474]
[1725003665530,1.4359393,2527.2,2527.1,3.01520102]
[1725003665725,1.4359393,2527.2,2527.1,1.03624474]
[1725003665929,10.21912648,2527.2,2527.0,1.03624474]
[1725003666127,8.25232648,2527.2,2527.0,1.03624474]
[1725003666429,8.25232648,2527.2,2526.9,2.59279369]
[1725003666628,0.39565,2527.1,2526.9,1.03624474]
[1725003666931,0.9465,2527.0,2526.9,1.03624474]
[1725003667126,6.28093261,2527.0,2526.9,1.03624474]
[1725003667333,1.8725,2527.0,2526.8,4.24404474]
[1725003667529,5.99565932,2527.0,2526.9,1.03624474]
[1725003667832,5.99565932,2527.0,2526.8,4.24404474]
[1725003668023,5.99565932,2527.0,2526.9,1.03624474]
[1725003668426,5.99565932,2527.0,2526.8,4.24404474]
[1725003668628,5.99565932,2527.0,2526.9,1.03624474]
[1725003670026,5.99565932,2527.0,2526.8,4.24404474]
[1725003670333,4.12315932,2527.0,2526.8,1.03624474]
[1725003670532,4.12315932,2527.0,2526.9,2.01274474]
[1725003670736,5.7685693,2527.2,2526.9,0.9765]
[1725003670737,4.28294252,2527.1,2526.9,0.9765]
[1725003670939,5.7685693,2527.2,2526.9,0.9765]
[1725003671320,4.28294252,2527.1,2526.9,0.9765]
[1725003672036,4.67859252,2527.1,2526.9,0.9765]
[1725003672231,0.39568,2526.9,2526.8,1.03624474]
[1725003672430,3.42,2527.0,2526.6,2.97674474]
[1725003672637,2.3283,2526.8,2526.6,2.97674474]
[1725003673140,7.97460911,2526.7,2526.6,0.9765]
[1725003675529,7.97460911,2526.7,2526.6,0.9765]
[1725003679125,0.39573,2526.6,2526.4,1.03624474]
[1725003679333,7.97461911,2526.7,2526.4,1.98094474]
[1725003680239,0.39573,2526.6,2526.4,1.98094474]
[1725003681641,3.81574,2526.5,2526.4,1.03624474]
[1725003681843,0.3958,2526.1,2526.0,1.03624474]
[1725003682143,3.42,2526.1,2525.9,4.24998404]
[1725003682333,4.83260736,2526.1,2525.9,4.24998404]
[1725003684242,4.43679736,2526.1,2525.9,4.24998404]
[1725003684541,4.23122167,2526.2,2526.0,1.03624474]
[1725003684838,3.42,2526.3,2526.0,1.03624474]
[1725003685237,4.23122167,2526.2,2526.0,1.03624474]
[1725003686141,4.23122167,2526.2,2526.1,1.03624474]
[1725003686445,4.28518517,2526.3,2526.1,1.03624474]
[1725003686637,4.28518517,2526.3,2526.0,1.03624474]
[1725003686940,5.70946,2526.4,2526.0,1.03624474]
[1725003687131,4.12029972,2526.3,2526.0,1.03624474]
[1725003687735,4.12029972,2526.3,2526.1,1.03624474]
[1725003688035,4.12029972,2526.3,2526.2,1.0075]
[1725003688238,4.12029972,2526.3,2526.0,1.03624474]
[1725003688441,4.51606972,2526.3,2526.0,1.03624474]
[1725003688841,7.93606972,2526.3,2526.0,1.03624474]
[1725003693946,4.51606972,2526.3,2526.0,1.03624474]
[1725003694148,1.43,2526.1,2526.0,1.03624474]
[1725003694332,1.43,2526.1,2526.0,3.41176937]
[1725003694539,1.43,2526.3,2526.1,0.3958]
[1725003694734,1.43,2526.3,2526.2,2.4888803]
[1725003695042,5.57647279,2526.3,2526.2,2.4888803]
[1725003695242,5.57647279,2526.3,2526.2,1.45381358]
[1725003696437,5.57647279,2526.3,2526.2,2.47811358]
[1725003697650,5.57647279,2526.3,2526.2,2.47811031]
[1725003699148,5.57647279,2526.3,2526.2,3.51317703]
[1725003699740,5.57647279,2526.3,2526.2,2.47811031]
[1725003700742,5.57647279,2526.3,2526.2,3.51317703]
[1725003701465,5.57647279,2526.3,2526.2,3.90896703]
[1725003702452,5.57647279,2526.3,2526.2,5.8885136]
[1725003702662,4.14647279,2526.3,2526.2,5.8885136]
[1725003702958,5.57647279,2526.3,2526.2,5.8885136]
[1725003703154,5.57647279,2526.3,2526.2,5.4927236]
[1725003703543,5.97224279,2526.3,2526.2,0.49491031]
[1725003703745,0.39579,2526.2,2526.1,1.03506672]
[1725003703946,5.97225279,2526.3,2526.2,0.49493321]
[1725003704150,1.82578,2526.3,2526.2,0.49493321]
[1725003704355,6.26291903,2526.3,2526.1,0.49493321]
[1725003704548,1.82579,2526.2,2526.0,1.03506672]
[1725003704747,1.82579,2526.2,2526.1,0.49494115]
[1725003705051,6.08607198,2526.2,2526.1,0.49494115]
[1725003705353,10.04447198,2526.2,2526.1,0.49494115]
[1725003706452,13.25227198,2526.2,2526.1,0.49494115]
[1725003708453,9.29387198,2526.2,2526.1,0.49494115]
[1725003708777,13.25227198,2526.2,2526.1,0.49494115]
[1725003709750,9.29387198,2526.2,2526.1,0.49494115]
[1725003710248,0.39581,2526.1,2525.9,0.0059393]
[1725003710457,1.43,2526.0,2525.9,0.0059393]
[1725003710650,6.61759203,2526.0,2525.9,0.0059393]
[1725003710849,6.61759203,2526.0,2525.9,0.50092043]
[1725003711159,7.01341203,2526.0,2525.9,0.50092043]
[1725003712367,7.01341203,2526.0,2525.8,1.03506672]
[1725003712368,0.39583,2525.9,2525.8,1.03506672]
[1725003712557,0.98963,2525.8,2525.7,1.55654895]
[1725003712757,6.77468,2525.8,2525.7,2.05163628]
[1725003713059,0.3959,2525.5,2525.2,1.9577]
[1725003713258,1.43,2525.3,2525.2,1.9577]
[1725003713458,1.43,2525.3,2525.2,2.37188582]
[1725003713757,1.43,2525.3,2525.2,6.33188582]
[1725003714261,1.43,2525.3,2525.2,5.9177]
[1725003715165,1.43,2525.3,2525.2,9.97095859]
[1725003715366,1.43,2525.3,2525.2,7.99061414]
[1725003717165,5.9273384,2525.3,2525.2,4.03061414]
[1725003717462,10.2832684,2525.3,2525.2,2.07291414]
[1725003717662,13.4910684,2525.3,2525.2,2.07291414]
[1725003718365,9.5310684,2525.3,2525.2,2.07291414]
[1725003718562,13.4910684,2525.3,2525.2,2.07291414]
[1725003718763,9.5310684,2525.3,2525.2,2.07291414]
[1725003719065,13.4910684,2525.3,2525.2,2.07291414]
[1725003719266,9.5310684,2525.3,2525.2,2.07291414]
[1725003719864,8.1010684,2525.3,2525.2,2.07291414]
[1725003720063,4.4973384,2525.3,2525.2,6.03291414]
[1725003720280,0.0059393,2525.5,2525.4,0.39591]
[1725003720563,0.0059393,2525.5,2525.4,7.37127026]
[1725003720767,0.0059393,2525.5,2525.4,10.70069061]
[1725003723061,0.0059393,2525.5,2525.4,11.09660061]
[1725003723372,0.0059393,2525.5,2525.4,11.51074524]
[1725003723867,0.0059393,2525.5,2525.4,11.11483524]
[1725003724071,0.0059393,2525.5,2525.4,9.13464439]
[1725003724276,0.0059393,2525.5,2525.4,11.11472052]
[1725003725884,0.0059393,2525.5,2525.4,10.70058409]
[1725003726382,0.0059393,2525.5,2525.4,11.11472669]
[1725003726579,0.0059393,2525.5,2525.4,11.1147257]
[1725003727383,0.0059393,2525.5,2525.4,9.56201774]
[1725003727578,0.0059393,2525.5,2525.4,6.35421774]
[1725003727786,0.0059393,2525.5,2525.4,9.56201774]
[1725003728185,0.0059393,2525.5,2525.4,11.11505979]
[1725003728383,0.0059393,2525.5,2525.4,10.70091818]
[1725003728888,0.0059393,2525.5,2525.4,11.11506359]
[1725003729088,0.0059393,2525.5,2525.4,10.70093664]
[1725003729382,0.0059393,2525.5,2525.4,11.11507679]
[1725003729582,0.0059393,2525.5,2525.4,12.10087679]
[1725003730391,0.0059393,2525.5,2525.4,12.10087429]
[1725003730689,0.0059393,2525.5,2525.4,12.08264664]
[1725003730994,0.0059393,2525.5,2525.4,10.52960459]
[1725003731194,0.98929,2526.7,2525.4,25.58669473]
[1725003731195,3.42,2526.2,2525.4,25.58669473]
[1725003731483,4.25453224,2526.1,2525.9,1.0351801]
[1725003731684,4.25453224,2526.1,2526.0,1.9231]
[1725003731685,4.65033224,2526.1,2526.0,1.9231]
[1725003732293,4.25453224,2526.1,2526.0,1.9231]
[1725003733481,4.65033224,2526.1,2526.0,1.9231]
[1725003734485,4.25453224,2526.1,2526.0,1.9231]
[1725003739293,5.19973224,2526.1,2526.0,1.9231]
[1725003740009,6.62973224,2526.1,2526.0,1.9231]
[1725003744103,7.02553224,2526.1,2525.9,1.0351801]
[1725003744297,0.9718,2526.0,2525.9,1.0351801]
[1725003745203,0.9718,2526.0,2525.9,3.0150265]
[1725003745402,0.38133472,2526.0,2525.9,3.0150265]
[1725003745603,0.77715472,2526.0,2525.9,1.0351801]
[1725003745800,1.79775472,2526.0,2525.9,1.0351801]
[1725003746303,1.40193472,2526.0,2525.9,3.01501883]
[1725003746692,1.40193472,2526.0,2525.9,1.0351801]
[1725003747091,1.79775472,2526.0,2525.9,1.0351801]
[1725003747291,1.79775472,2526.0,2525.5,5.79894268]
[1725003747292,0.39587,2525.7,2525.6,1.0351801]
[1725003747502,0.39588,2525.6,2525.5,1.0351801]
[1725003747704,0.3959,2525.5,2525.4,4.2429801]
[1725003747897,1.43,2525.5,2525.4,6.2232354]
[1725003748095,5.82569419,2525.5,2525.4,6.2232354]
[1725003748497,6.84959419,2525.5,2525.4,6.2232354]
[1725003748705,7.24549419,2525.5,2525.4,6.2232354]
[1725003748907,7.24549419,2525.5,2525.4,4.2429801]
[1725003749208,7.24549419,2525.5,2525.4,6.22324105]
[1725003749591,6.84959419,2525.5,2525.4,6.22324105]
[1725003750207,6.84959419,2525.5,2525.4,6.74083111]
[1725003750993,6.84959419,2525.5,2525.4,6.22432878]
[1725003751305,6.84959419,2525.5,2525.4,6.74083111]
[1725003752301,6.84959419,2525.5,2525.4,7.15498985]
[1725003752607,6.84959419,2525.5,2525.4,6.74083111]
[1725003753806,6.84959419,2525.5,2525.4,4.76057016]
[1725003753998,6.84959419,2525.5,2525.4,6.7407958]
[1725003754598,6.84959419,2525.5,2525.4,6.22430085]
[1725003754803,7.24549419,2525.5,2525.4,5.18802564]
[1725003755106,7.24549419,2525.5,2525.3,1.0362826]
[1725003755107,0.39591,2525.4,2525.3,1.0362826]
[1725003755410,0.39591,2525.4,2525.1,1.0362826]
[1725003755411,0.39594,2525.2,2525.1,1.0362826]
[1725003755799,4.66243356,2525.2,2525.1,1.0362826]
[1725003756110,4.66243356,2525.2,2525.1,3.01680724]
[1725003756309,4.66243356,2525.2,2525.1,1.0362826]
[1725003756618,4.66243356,2525.2,2525.1,3.01680067]
[1725003756910,4.66243356,2525.2,2525.1,1.0362826]
[1725003758209,4.26649356,2525.2,2525.1,1.0362826]
[1725003758604,4.66243356,2525.2,2525.1,1.0362826]
[1725003761311,4.26649356,2525.2,2525.0,1.0422219]
[1725003761505,4.66243356,2525.2,2525.1,1.0362826]
[1725003762107,4.26649356,2525.2,2525.1,1.0362826]
[1725003762307,4.66243356,2525.2,2525.1,1.0362826]
[1725003762518,4.26649356,2525.2,2525.1,1.0362826]
[1725003762919,4.26649356,2525.2,2525.1,3.01675768]
[1725003764015,4.26649356,2525.2,2525.1,1.0362826]
[1725003764202,4.26649356,2525.2,2525.1,3.01672363]
[1725003764811,4.26649356,2525.2,2525.1,1.0362826]
[1725003765615,5.26009356,2525.2,2525.1,1.0362826]
[1725003766214,5.26009356,2525.2,2525.0,2.59499206]
[1725003766215,0.39596,2525.1,2525.0,2.59499206]
[1725003766413,1.82596,2525.1,2525.0,1.0422219]
[1725003767214,1.82596,2525.1,2525.0,0.0059393]
[1725003767415,11.10885299,2525.1,2525.0,0.0059393]
[1725003767616,7.14885299,2525.1,2525.0,0.0059393]
[1725003767824,11.10885299,2525.1,2525.0,0.0059393]
[1725003768124,5.74879299,2525.1,2525.0,0.0059393]
[1725003768318,4.31879299,2525.1,2525.0,0.4019193]
[1725003768726,4.31879299,2525.1,2525.0,3.93514833]
[1725003768920,4.31879299,2525.1,2525.0,4.34934814]
[1725003769228,1.43,2525.4,2525.1,0.39594]
[1725003769523,1.43,2525.4,2525.2,4.41205549]
[1725003769727,1.43,2525.4,2525.3,0.9317]
[1725003770124,1.43,2525.4,2525.3,1.96711366]
[1725003771214,1.43,2525.4,2525.3,0.9317]
[1725003771625,1.43,2525.4,2525.3,1.96711366]
[1725003776730,1.43,2525.4,2525.3,0.9317]
[1725003777121,2.4501,2525.4,2525.3,0.9317]
[1725003779227,2.4501,2525.4,2525.3,1.96711366]
[1725003780322,1.43,2525.6,2525.3,4.86098494]
[1725003780527,1.82589,2525.6,2525.4,2.04936424]
[1725003780727,5.95892634,2525.6,2525.4,2.04936424]
[1725003781124,5.95892634,2525.6,2525.4,1.03546424]
[1725003781716,0.3959,2525.5,2525.4,1.03546424]
[1725003781920,0.3959,2525.5,2525.3,1.03546424]
[1725003782120,2.457,2525.4,2525.3,1.03546424]
[1725003783423,1.027,2525.4,2525.3,3.01571278]
[1725003783731,2.457,2525.4,2525.3,3.01571278]
[1725003785229,6.94412851,2525.4,2525.3,3.01571278]
[1725003785436,7.34003851,2525.4,2525.3,1.98024854]
[1725003785735,6.94412851,2525.4,2525.3,1.98024854]
[1725003786031,7.34003851,2525.4,2525.3,1.98024854]
[1725003786231,7.34003851,2525.4,2525.3,3.53336904]
[1725003788834,11.30003851,2525.4,2525.3,3.01697906]
[1725003789036,12.28982851,2525.4,2525.3,1.03673052]
[1725003789236,12.28982851,2525.4,2525.2,1.03673052]
[1725003789237,1.38576,2525.3,2525.2,1.03673052]
[1725003789534,0.39594,2525.2,2525.1,1.03673052]
[1725003789836,4.84382136,2525.2,2525.1,3.01731]
[1725003790225,4.84382136,2525.2,2525.1,3.53369998]
[1725003790427,4.84382136,2525.2,2525.1,4.96101564]
[1725003791136,4.84382136,2525.2,2525.1,4.54679998]
[1725003791726,4.44788136,2525.2,2525.1,2.5662205]
[1725003791931,1.027,2525.4,2525.1,12.98483634]
[1725003791932,1.43,2525.4,2525.1,12.98483634]
[1725003792130,1.43,2525.4,2525.3,1.55608991]
[1725003792333,1.43,2525.4,2525.3,3.53658637]
[1725003792533,1.43,2525.4,2525.3,1.98049646]
[1725003793431,1.43,2525.4,2525.3,4.05085667]
[1725003793937,10.24165076,2525.4,2525.3,3.53756489]
[1725003794333,6.28165076,2525.4,2525.3,3.53756489]
[1725003795346,5.88574076,2525.4,2525.3,3.95177326]
[1725003795536,5.88574076,2525.4,2525.3,4.91927326]
[1725003796645,5.88574076,2525.4,2525.3,4.91922055]
[1725003798752,5.88574076,2525.4,2525.3,3.36215212]
[1725003800560,6.28165076,2525.4,2525.3,3.36215212]
[1725003801060,5.88574076,2525.4,2525.3,3.36215212]
[1725003801362,6.28165076,2525.4,2525.3,3.36215212]
[1725003801558,6.28165076,2525.4,2525.3,3.36214403]
[1725003801859,6.28165076,2525.4,2525.3,2.39461517]
[1725003802159,5.88574076,2525.4,2525.3,2.39461517]
[1725003802762,6.28165076,2525.4,2525.3,2.39461517]
[1725003804460,10.24165076,2525.4,2525.3,2.39461517]
[1725003804852,10.24165076,2525.4,2525.3,2.39461487]
[1725003805052,10.24165076,2525.4,2525.3,3.95222152]
[1725003806563,10.24165076,2525.4,2525.3,1.97180663]
[1725003806763,10.24165076,2525.4,2525.3,3.9522914]
[1725003807772,10.24165076,2525.4,2525.3,3.53809142]
[1725003807965,10.24165076,2525.4,2525.3,3.01899922]
[1725003808962,10.24165076,2525.4,2525.3,1.03851445]
[1725003812870,10.24165076,2525.4,2525.3,3.01909727]
[1725003813166,10.24165076,2525.4,2525.3,3.53818947]
[1725003813665,6.28165076,2525.4,2525.3,3.53818947]
[1725003814262,6.28165076,2525.4,2525.3,3.95240586]
[1725003814568,6.28165076,2525.4,2525.3,3.53818947]
[1725003816574,6.28165076,2525.4,2525.3,1.9805068]
[1725003816773,6.28165076,2525.4,2525.3,3.01887079]
[1725003818171,6.28165076,2525.4,2525.3,1.03836399]
[1725003818377,6.28165076,2525.4,2525.3,3.01889697]
[1725003818378,4.85165076,2525.4,2525.3,3.01889697]
[1725003818672,6.28165076,2525.4,2525.3,4.92364405]
[1725003820570,5.88574076,2525.4,2525.3,4.92364405]
[1725003820771,6.28165076,2525.4,2525.3,4.92364405]
[1725003821370,6.28165076,2525.4,2525.3,4.50943963]
[1725003821566,6.28165076,2525.4,2525.3,4.92351947]
[1725003821765,6.28165076,2525.4,2525.3,4.92352059]
[1725003824680,6.28165076,2525.4,2525.3,4.5093196]
[1725003824994,6.28165076,2525.4,2525.3,4.92352052]
[1725003826575,6.28165076,2525.4,2525.3,4.92355097]
[1725003827982,6.28165076,2525.4,2525.3,4.50935005]
[1725003828182,6.28165076,2525.4,2525.3,4.92355591]
[1725003829384,6.28165076,2525.4,2525.3,4.50935005]
[1725003829584,6.28165076,2525.4,2525.3,4.92355591]
[1725003829980,7.27144076,2525.4,2525.3,4.92355591]
[1725003831282,6.28165076,2525.4,2525.3,4.92355591]
[1725003831486,5.88574076,2525.4,2525.3,3.36596036]
[1725003831684,6.28165076,2525.4,2525.3,3.36596036]
[1725003832790,6.28165076,2525.4,2525.3,5.43632057]
[1725003833290,6.28165076,2525.4,2525.3,9.39711834]
[1725003833586,4.174,2525.8,2525.5,0.39589]
[1725003833787,4.174,2525.8,2525.6,10.54528706]
[1725003833993,4.174,2525.8,2525.7,7.74003805]
[1725003834290,4.174,2525.8,2525.7,7.74003105]
[1725003834291,4.53116893,2525.8,2525.7,7.74003105]
[1725003834488,4.53116893,2525.8,2525.7,20.69175943]
[1725003834698,0.4017193,2526.3,2525.7,20.69175943]
[1725003834699,0.0059393,2526.3,2526.1,0.3958]
[1725003834904,0.0059393,2526.3,2526.2,11.62211637]
[1725003835194,0.0059393,2526.3,2526.2,7.26717372]
[1725003835493,0.0059393,2526.3,2526.2,7.66073116]
[1725003836304,0.0059393,2526.3,2526.2,5.19079884]
[1725003836596,0.0059393,2526.3,2526.2,6.33104194]
[1725003837188,1.4359393,2526.3,2526.2,6.33104194]
[1725003837493,1.4359393,2526.3,2526.2,3.83341644]
[1725003837795,1.8317093,2526.3,2526.2,2.87501644]
[1725003838092,1.8317093,2526.3,2526.2,1.8388]
[1725003839602,6.18239119,2526.3,2526.2,1.8388]
[1725003840293,4.35662119,2526.3,2526.2,1.8388]
[1725003840997,4.75239119,2526.3,2526.2,1.8388]
[1725003841187,4.35662119,2526.3,2526.2,1.8388]
[1725003842087,4.35662119,2526.3,2526.2,5.7972]
[1725003842284,4.35662119,2526.3,2526.2,7.22920644]
[1725003842285,0.0059393,2526.3,2526.2,7.22920644]
[1725003842484,0.0059393,2526.3,2526.2,6.19299]
[1725003843301,0.0059393,2526.3,2526.2,16.63861122]
[1725003843487,0.9898,2527.1,2526.4,0.39575]
[1725003843488,1.82569,2526.8,2526.4,0.39575]
[1725003843691,3.2078,2527.0,2526.5,0.9459]
[1725003843890,4.24283435,2527.0,2526.8,0.39569]
[1725003844097,1.43,2526.9,2526.6,2.42196013]
[1725003844298,1.43,2526.9,2526.6,2.42197013]
[1725003844605,4.01467963,2526.8,2526.6,2.02625013]
[1725003844993,4.01467963,2526.8,2526.6,5.98385013]
[1725003845193,4.01467963,2526.8,2526.6,4.9496]
[1725003846101,5.44467963,2526.8,2526.6,0.992]
[1725003846795,6.34737963,2526.8,2526.6,0.992]
[1725003847110,0.39571,2526.7,2526.6,0.992]
[1725003847401,0.39571,2526.7,2526.5,0.0059393]
[1725003847402,4.6985489,2526.7,2526.5,0.0059393]
[1725003847608,1.82572,2526.6,2526.5,0.0059393]
[1725003847997,6.1285489,2526.6,2526.5,0.0059393]
[1725003849813,5.7328289,2526.6,2526.5,0.0059393]
[1725003850303,6.1285489,2526.6,2526.5,0.0059393]
[1725003851609,10.0861489,2526.6,2526.5,0.0059393]
[1725003851908,6.1285489,2526.6,2526.5,0.0059393]
[1725003852498,10.0861489,2526.6,2526.5,0.0059393]
[1725003854904,13.2939489,2526.6,2526.5,0.0059393]
[1725003855107,13.2939489,2526.6,2526.0,2.8787]
[1725003855108,0.3958,2526.1,2526.0,0.9476]
[1725003855304,1.43,2526.1,2526.0,0.9476]
[1725003855513,5.8928285,2526.1,2526.0,0.9476]
[1725003855703,7.2327285,2526.1,2526.0,0.9476]
[1725003855901,5.8027285,2526.1,2526.0,0.9476]
[1725003856103,7.2327285,2526.1,2526.0,0.9476]
[1725003858305,0.39583,2526.0,2525.8,0.0059393]
[1725003858499,10.7953285,2526.1,2525.8,0.0059393]
[1725003858500,1.82583,2525.9,2525.8,0.0059393]
[1725003858707,5.94870919,2525.9,2525.8,0.0059393]
[1725003860806,5.55287919,2525.9,2525.8,0.0059393]
[1725003861106,5.94870919,2525.9,2525.8,0.0059393]
[1725003861911,6.88970919,2525.9,2525.8,0.0059393]
[1725003869613,10.84890919,2525.9,2525.8,0.0059393]
[1725003870221,5.94870919,2525.9,2525.8,0.0059393]
[1725003884834,6.12148743,2525.9,2525.8,0.0059393]
[1725003885330,9.32928743,2525.9,2525.8,0.0059393]
[1725003885535,10.31887743,2525.9,2525.8,0.0059393]
[1725003887127,14.27807743,2525.9,2525.8,0.0059393]
[1725003890930,11.07027743,2525.9,2525.8,0.0059393]
[1725003891134,14.27807743,2525.9,2525.8,0.0059393]
[1725003891831,14.27807743,2525.9,2525.2,8.34782717]
[1725003891832,0.9897,2525.7,2525.2,8.34782717]
[1725003892031,0.9897,2525.7,2525.4,0.9403]
[1725003892332,1.8259,2525.5,2525.4,0.9403]
[1725003892526,0.3959,2525.5,2525.4,0.9403]
[1725003892838,6.33712189,2525.5,2525.4,0.9403]
[1725003893025,6.33712189,2525.5,2525.2,4.24676647]